fUSD/lending_fUSD_20240517
["ID","MTS","AMOUNT","RATE_DAILY","PERIOD"]
[327307490,1715977863748,-150.0,0.00021918,2]
[327307491,1715977863757,-150.0,0.00021918,2]
[327307492,1715977863767,-150.0,0.00021918,2]
[327307493,1715977863776,-150.0,0.00021918,2]
[327307494,1715977863786,-150.0,0.00021918,2]
[327307495,1715977863795,-150.0,0.00021918,2]
[327307496,1715977863804,-150.0,0.00021918,2]
[327307497,1715977863813,-150.0,0.00021918,2]
[327307498,1715977863822,-150.0,0.00021918,2]
[327307499,1715977863832,-150.0,0.00021918,2]
[327307500,1715977863841,-150.0,0.00021918,2]
[327307501,1715977863851,-150.0,0.00021918,2]
[327307502,1715977863860,-150.0,0.00021918,2]
[327307503,1715977863869,-150.0,0.00021918,2]
[327307504,1715977863878,-150.0,0.00021918,2]
[327307505,1715977863887,-150.0,0.00021918,2]
[327307506,1715977863897,-594.736997,0.00021918,7]
[327307507,1715977863907,-594.736997,0.00021918,7]
[327307508,1715977863916,-345.560596,0.00021918,7]
[327307509,1715977863926,-345.560596,0.00021918,7]
[327307510,1715977863935,-1010.62,0.00021935,2]
[327307511,1715977863945,-472.67228928,0.00021953,2]
[327307512,1715977863954,-290.15309922,0.00021954,2]
[327307513,1715977863964,-955.53815159,0.00022,2]
[327307514,1715977863973,-239.51606952,0.00022,2]
[327307515,1715977863983,-1057.93990053,0.00022,2]
[327307516,1715977863992,-158.39019502,0.00022,2]
[327307517,1715977864001,-732.33249084,0.00022,7]
[327307518,1715977864011,-6654.02897009,0.00022,2]
[327307519,1715977864022,-4114.18281244,0.00022,30]
[327307520,1715977864032,-20000.0,0.00022,5]
[327307521,1715977864042,-159.0,0.00022,2]
[327307522,1715977864051,-1107.0,0.00022,10]
[327307523,1715977864061,-151.0,0.00022,7]
[327307524,1715977864071,-151.0,0.00022,7]
[327307525,1715977864080,-275.5,0.00022,2]
[327307526,1715977864090,-9541.80941044,0.00022,2]
[327307527,1715977864099,-150.0,0.00022,3]
[327307528,1715977864110,-1151.34669323,0.00022018,2]
[327307529,1715977864121,-166.66666666,0.00022027,2]
[327307530,1715977864131,-150.63567191,0.00022032,2]
[327307531,1715977864141,-307.14,0.0002206,2]
[327307532,1715977864152,-154.75954023,0.0002209,2]
[327307533,1715977864163,-154.51679898,0.00022097,2]
[327307534,1715977864172,-233.12013985,0.000221,2]
[327307535,1715977864181,-166.6666667,0.00022104,2]
[327307536,1715977864191,-224.62694205,0.0002211,2]
[327307537,1715977864201,-902.47746754,0.00022126,2]
[327307538,1715977864210,-158.96537893,0.00022139,2]
[327307539,1715977864220,-902.47746754,0.00022153,2]
[327307540,1715977864229,-158.96537898,0.00022177,2]
[327307541,1715977864240,-151.0,0.00022192,2]
[327307542,1715977864250,-290.15309922,0.00022224,2]
[327307543,1715977864259,-902.47746754,0.00022227,2]
[327307544,1715977864269,-154.51679898,0.00022236,2]
[327307545,1715977864278,-154.75954023,0.00022238,2]
[327307546,1715977864288,-5288.51025124,0.00022253,2]
[327307547,1715977864298,-285.92319707,0.00022256,2]
[327307548,1715977864307,-2280.14178071,0.0002227,2]
[327307549,1715977864317,-294.0,0.0002227,15]
[327307550,1715977864326,-353.0,0.0002227,15]
[327307551,1715977864335,-4739.0,0.0002227,15]
[327307552,1715977864345,-2280.14178071,0.00022271,2]
[327307553,1715977864355,-169.00998558,0.00022274,2]
[327307554,1715977864364,-294.0,0.0002228,15]
[327307555,1715977864373,-353.0,0.0002228,15]
[327307556,1715977864382,-4739.0,0.0002228,15]
[327307557,1715977864392,-294.0,0.0002229,15]
[327307558,1715977864401,-353.0,0.0002229,15]
[327307559,1715977864410,-4739.0,0.0002229,15]
[327307560,1715977864419,-155.0,0.00022325,2]
[327307561,1715977864429,-159.96588011,0.00022331,2]
[327307562,1715977864438,-1312.69,0.00022336,15]
[327307563,1715977864447,-166.6666667,0.00022358,2]
[327307564,1715977864457,-2280.14178071,0.0002237,2]
[327307565,1715977864466,-169.18135281,0.00022377,2]
[327307566,1715977864476,-285.92319707,0.00022379,2]
[327307567,1715977864485,-234.8218264,0.00022387,2]
[327307568,1715977864494,-152.99399687,0.00022393,2]
[327307569,1715977864503,-4069.91,0.000224,2]
[327307570,1715977864513,-4876.03,0.000224,2]
[327307571,1715977864522,-4308.86,0.000224,2]
[327307572,1715977864532,-166.66666666,0.00022443,2]
[327307573,1715977864542,-2280.14178071,0.00022464,2]
[327307574,1715977864551,-285.92319707,0.00022476,2]
[327307575,1715977864561,-150.63567191,0.00022486,2]
[327307576,1715977864570,-33115.67696469,0.000225,2]
[327307577,1715977864580,-2900.0,0.000225,15]
[327307578,1715977864589,-708.0,0.000225,15]
[327307579,1715977864598,-1107.0,0.000225,10]
[327307580,1715977864607,-150.0,0.000225,3]
[327307581,1715977864616,-152.84858728,0.00022526,2]
[327307582,1715977864626,-156.49084933,0.00022529,2]
[327307583,1715977864636,-150.63567191,0.00022534,2]
[327307584,1715977864646,-389.68,0.00022548,2]
[327307585,1715977864656,-389.68,0.00022548,2]
[327307586,1715977864666,-389.68,0.00022548,2]
[327307587,1715977864676,-389.68,0.00022548,2]
[327307588,1715977864686,-389.72343733,0.00022548,2]
[327307589,1715977864696,-335304.0,0.00022549,2]
[327307590,1715977864705,-500.0,0.00022562,2]
[327307591,1715977864715,-158.12,0.00022603,2]
[327307592,1715977864726,-150.63567191,0.00022628,2]
[327307593,1715977864736,-156.49084933,0.00022659,2]
[327307594,1715977864746,-154.75954023,0.00022663,2]
[327307595,1715977864757,-290.15309922,0.00022664,2]
[327307596,1715977864766,-170.46182498,0.00022669,2]
[327307597,1715977864775,-152.84858728,0.00022705,2]
[327307598,1715977864785,-3000.0,0.0002271,2]
[327307599,1715977864795,-472.67228928,0.00022731,2]
[327307600,1715977864805,-166.6666667,0.00022739,2]
[327307601,1715977864815,-189.44858208,0.00022743,2]
[327307602,1715977864824,-472.67228928,0.00022765,2]
[327307603,1715977864834,-156.78049294,0.00022785,2]
[327307604,1715977864845,-1151.34669323,0.00022819,2]
[327307605,1715977864854,-1010.62,0.0002287,2]
[327307606,1715977864864,-3210.89736039,0.000229,7]
[327307607,1715977864873,-150.63567191,0.00022914,2]
[327307608,1715977864883,-154.51679906,0.00022918,2]
[327307609,1715977864892,-1151.34669323,0.00022925,2]
[327307610,1715977864901,-2964.23272251,0.00022939,7]
[327307611,1715977864911,-285.92319707,0.00022953,2]
[327307612,1715977864920,-208458.2689169,0.00022969,7]
[327307613,1715977864929,-151.0,0.00022969,7]
[327307614,1715977864938,-151.0,0.00022969,7]
[327307615,1715977864948,-151.0,0.00022969,7]
[327307616,1715977864957,-504.7,0.00022969,7]
[327307617,1715977864967,-151.0,0.00022969,7]
[327307618,1715977864977,-504.7,0.00022969,7]
[327307619,1715977864986,-151.0,0.00022969,7]
[327307620,1715977864995,-151.0,0.00022969,7]
[327307621,1715977865005,-151.0,0.00022969,7]
[327307622,1715977865015,-594.736997,0.00022969,7]
[327307623,1715977865024,-594.736997,0.00022969,7]
[327307624,1715977865035,-345.560596,0.00022969,7]
[327307625,1715977865044,-345.560596,0.00022969,7]
[327307626,1715977865053,-771.0554,0.00022969,7]
[327307627,1715977865062,-771.0554,0.00022969,7]
[327307628,1715977865071,-516.420207,0.00022969,7]
[327307629,1715977865081,-516.420207,0.00022969,7]
[327307630,1715977865091,-324.969005,0.00022969,7]
[327307631,1715977865100,-324.969005,0.00022969,7]
[327307632,1715977865109,-151.0,0.00022969,7]
[327307633,1715977865118,-151.0,0.00022969,7]
[327307634,1715977865129,-234.773835,0.00022969,7]
[327307635,1715977865138,-276961.09823745,0.00023,2]
[327307636,1715977865148,-20000.0,0.00023,3]
[327307637,1715977865160,-600.0,0.00023,15]
[327307638,1715977865169,-900.0,0.00023,24]
[327307639,1715977865178,-5000.0,0.00023,3]
[327307640,1715977865187,-240.09787811,0.00023,2]
[327307641,1715977865197,-1107.0,0.00023,11]
[327307642,1715977865206,-152.367248,0.00023,14]
[327307643,1715977865216,-398.124781,0.00023,2]
[327307644,1715977865225,-406.398583,0.00023,2]
[327307645,1715977865235,-150.0,0.00023,3]
[327307646,1715977865245,-166.66666666,0.00023015,2]
[327307647,1715977865256,-902.47746755,0.00023044,2]
[327307648,1715977865265,-162.0,0.00023051,2]
[327307649,1715977865274,-166.66666668,0.0002313,2]
[327307650,1715977865283,-472.67228928,0.00023133,2]
[327307651,1715977865293,-290.1530993,0.00023135,2]
[327307652,1715977865302,-285.92319722,0.00023174,2]
[327307653,1715977865312,-4069.91,0.000232,2]
[327307654,1715977865321,-4308.86,0.000232,2]
[327307655,1715977865330,-4876.03,0.000232,2]
[327307656,1715977865339,-157.7173922,0.00023201,2]
[327307657,1715977865349,-159.96588011,0.0002321,2]
[327307658,1715977865491,-154.75954023,0.00023217,2]
[327307659,1715977865500,-1738.4,0.00023219,2]
[327307660,1715977865510,-869.2,0.00023219,2]
[327307661,1715977865519,-3036.35700026,0.0002322,30]
[327307662,1715977865528,-3133.30489988,0.0002323,2]
[327307663,1715977865539,-2280.14178071,0.00023248,2]
[327307664,1715977865548,-152.84858728,0.00023256,2]
[327307665,1715977865558,-152.84858728,0.00023262,2]
[327307666,1715977865567,-1000.0,0.00023275,2]
[327307667,1715977865576,-380.0,0.00023288,2]
[327307668,1715977865585,-380.0,0.00023288,2]
[327307669,1715977865594,-380.0,0.00023288,2]
[327307670,1715977865603,-380.0,0.00023288,2]
[327307671,1715977865612,-380.0,0.00023288,2]
[327307672,1715977865621,-380.0,0.00023288,2]
[327307673,1715977865631,-380.0,0.00023288,2]
[327307674,1715977865640,-380.0,0.00023288,2]
[327307675,1715977865649,-366.15,0.00023288,2]
[327307676,1715977865658,-7723.6,0.000233,2]
[327307677,1715977865668,-7723.6,0.000233,2]
[327307678,1715977865678,-7723.6,0.000233,2]
[327307679,1715977865687,-7723.6,0.000233,2]
[327307680,1715977865697,-7723.6,0.000233,2]
[327307681,1715977865707,-7723.6,0.000233,2]
[327307682,1715977865716,-7723.6,0.000233,2]
[327307683,1715977865726,-7723.6,0.000233,2]
[327307684,1715977865735,-7723.6,0.000233,2]
[327307685,1715977865745,-7723.6,0.000233,2]
[327307686,1715977865754,-7723.6,0.000233,2]
[327307687,1715977865763,-7723.6,0.000233,2]
[327307688,1715977865773,-7723.6,0.000233,2]
[327307689,1715977865783,-7723.6,0.000233,2]
[327307690,1715977865793,-7723.6,0.000233,2]
[327307691,1715977865802,-7723.6,0.000233,2]
[327307692,1715977865812,-7723.6,0.000233,2]
[327307693,1715977865821,-7723.6,0.000233,2]
[327307694,1715977865831,-7723.6,0.000233,2]
[327307695,1715977865840,-7723.6,0.000233,2]
[327307696,1715977865849,-1151.34669333,0.00023318,2]
[327307697,1715977865859,-307.14,0.00023325,2]
[327307698,1715977865868,-156.49084933,0.00023326,2]
[327307699,1715977865878,-2280.14178084,0.00023332,2]
[327307700,1715977865887,-156.49084933,0.00023341,2]
[327307701,1715977865897,-5288.51025124,0.00023346,2]
[327307702,1715977865906,-152.84858735,0.00023351,2]
[327307703,1715977865916,-150.63567214,0.00023357,2]
[327307704,1715977865926,-166.6666667,0.00023369,2]
[327307705,1715977865935,-159.96588015,0.00023383,2]
[327307706,1715977865945,-2002.05142652,0.000234,2]
[327307707,1715977865954,-154.75954028,0.00023433,2]
[327307708,1715977865964,-31391.83499502,0.00023436,2]
[327307709,1715977865973,-7901.77369099,0.00023448,2]
[327307710,1715977865983,-156.49084953,0.00023452,2]
[327307711,1715977865993,-1199.3841281,0.00023457,2]
[327307712,1715977866002,-472.67228933,0.00023488,2]
[327307713,1715977866012,-153.90576904,0.00023496,2]
[327307714,1715977866021,-226.37507214,0.000235,2]
[327307715,1715977866030,-1015.31734026,0.000235,2]
[327307716,1715977866040,-200.0,0.000235,2]
[327307717,1715977866049,-444.94127906,0.000235,2]
[327307718,1715977866058,-155.0,0.000235,2]
[327307719,1715977866068,-872.30466489,0.000235,4]
[327307720,1715977866077,-172666.99420607,0.000235,7]
[327307721,1715977866087,-500.0,0.000235,2]
[327307722,1715977866096,-1107.0,0.000235,11]
[327307723,1715977866105,-151.0,0.000235,7]
[327307724,1715977866115,-272.32492983,0.000235,7]
[327307725,1715977866125,-500.0,0.000235,30]
[327307726,1715977866134,-500.0,0.000235,30]
[327307727,1715977866143,-500.0,0.000235,30]
[327307728,1715977866156,-500.0,0.000235,30]
[327307729,1715977866165,-500.0,0.000235,30]
[327307730,1715977866175,-166.51980486,0.000235,30]
[327307731,1715977866184,-175.684981,0.000235,7]
[327307732,1715977866195,-504.7,0.000235,7]
[327307733,1715977866204,-151.0,0.000235,7]
[327307734,1715977866214,-504.7,0.000235,7]
[327307735,1715977866225,-260.106354,0.000235,7]
[327307736,1715977866235,-151.0,0.000235,7]
[327307737,1715977866246,-151.0,0.000235,7]
[327307738,1715977866256,-594.736997,0.000235,7]
[327307739,1715977866265,-594.736997,0.000235,7]
[327307740,1715977866275,-345.560596,0.000235,7]
[327307741,1715977866287,-345.560596,0.000235,7]
[327307742,1715977866296,-771.0554,0.000235,7]
[327307743,1715977866305,-771.0554,0.000235,7]
[327307744,1715977866314,-516.420207,0.000235,7]
[327307745,1715977866325,-391.51782126,0.000235,2]
[327307746,1715977866335,-516.420207,0.000235,7]
[327307747,1715977866345,-324.969005,0.000235,7]
[327307748,1715977866355,-324.969005,0.000235,7]
[327307749,1715977866365,-151.0,0.000235,7]
[327307750,1715977866374,-279.127648,0.000235,7]
[327307751,1715977866384,-150.0,0.000235,3]
[327307752,1715977866394,-234.773835,0.000235,7]
[327307753,1715977866403,-3275.172,0.0002352,4]
[327307754,1715977866412,-3275.172,0.0002352,4]
[327307755,1715977866422,-3275.172,0.0002352,4]
[327307756,1715977866431,-3275.172,0.0002352,4]
[327307757,1715977866441,-3275.173,0.0002352,4]
[327307758,1715977866450,-300.0,0.0002355,2]
[327307759,1715977866460,-1010.62,0.0002358,2]
[327307760,1715977866470,-500.248,0.0002376,4]
[327307761,1715977866481,-500.248,0.0002376,4]
[327307762,1715977866491,-500.248,0.0002376,4]
[327307763,1715977866500,-500.249,0.0002376,4]
[327307764,1715977866510,-500.248,0.0002376,4]
[327307765,1715977866519,-222.0,0.0002378,15]
[327307766,1715977866529,-488.0,0.0002378,15]
[327307767,1715977866540,-3926.0,0.0002378,15]
[327307768,1715977866549,-150.5,0.0002379,15]
[327307769,1715977866559,-488.0,0.0002379,15]
[327307770,1715977866569,-3926.0,0.0002379,15]
[327307771,1715977866578,-294.0,0.0002388,15]
[327307772,1715977866588,-353.0,0.0002388,15]
[327307773,1715977866598,-4739.0,0.0002388,15]
[327307774,1715977866607,-294.0,0.0002389,15]
[327307775,1715977866617,-353.0,0.0002389,15]
[327307776,1715977866627,-4739.0,0.0002389,15]
[327307777,1715977866637,-84949.44804364,0.000239,2]
[327307778,1715977866646,-1137.03351264,0.000239,2]
[327307779,1715977866656,-1137.03351264,0.000239,2]
[327307780,1715977866666,-1137.03351264,0.000239,2]
[327307781,1715977866676,-1137.03351264,0.000239,2]
[327307782,1715977866685,-1137.03351264,0.000239,2]
[327307783,1715977866695,-1137.03351264,0.000239,2]
[327307784,1715977866704,-1137.03351264,0.000239,2]
[327307785,1715977866714,-1137.03351264,0.000239,2]
[327307786,1715977866724,-1137.03351264,0.000239,2]
[327307787,1715977866734,-1137.03351264,0.000239,2]
[327307788,1715977866743,-1137.03351264,0.000239,2]
[327307789,1715977866753,-1137.03351264,0.000239,2]
[327307790,1715977866763,-1137.03351264,0.000239,2]
[327307791,1715977866772,-1137.03351264,0.000239,2]
[327307792,1715977866784,-1137.03351264,0.000239,2]
[327307793,1715977866793,-1137.03351264,0.000239,2]
[327307794,1715977866802,-1137.03351264,0.000239,2]
[327307795,1715977866812,-1137.03351264,0.000239,2]
[327307796,1715977866822,-1137.03351264,0.000239,2]
[327307797,1715977866831,-1137.53,0.000239,2]
[327307798,1715977866841,-1205.32323711,0.000239,2]
[327307799,1715977866851,-1205.32323711,0.000239,2]
[327307800,1715977866861,-1205.32323711,0.000239,2]
[327307801,1715977866870,-1205.32323711,0.000239,2]
[327307802,1715977866879,-1205.32323711,0.000239,2]
[327307803,1715977866889,-1205.32323711,0.000239,2]
[327307804,1715977866898,-1205.32323711,0.000239,2]
[327307805,1715977866907,-1205.32323711,0.000239,2]
[327307806,1715977866916,-1205.32323711,0.000239,2]
[327307807,1715977866926,-1205.32323711,0.000239,2]
[327307808,1715977866935,-1205.32323711,0.000239,2]
[327307809,1715977866945,-1205.32323711,0.000239,2]
[327307810,1715977866954,-1205.32323711,0.000239,2]
[327307811,1715977866963,-1205.32323711,0.000239,2]
[327307812,1715977866972,-1205.32323711,0.000239,2]
[327307813,1715977866982,-1205.32323711,0.000239,2]
[327307814,1715977866992,-1205.32323711,0.000239,2]
[327307815,1715977867002,-1205.32323711,0.000239,2]
[327307816,1715977867012,-1205.32323711,0.000239,2]
[327307817,1715977867022,-1205.82,0.000239,2]
[327307818,1715977867032,-300.0,0.000239,8]
[327307819,1715977867041,-3561.7296639,0.000239,2]
[327307820,1715977867050,-3561.7296639,0.000239,2]
[327307821,1715977867060,-3561.7296639,0.000239,2]
[327307822,1715977867069,-3561.7296639,0.000239,2]
[327307823,1715977867078,-3561.7296639,0.000239,2]
[327307824,1715977867087,-3561.7296639,0.000239,2]
[327307825,1715977867096,-3561.7296639,0.000239,2]
[327307826,1715977867106,-3561.7296639,0.000239,2]
[327307827,1715977867116,-3561.7296639,0.000239,2]
[327307828,1715977867126,-3561.7296639,0.000239,2]
[327307829,1715977867135,-3561.7296639,0.000239,2]
[327307830,1715977867146,-3561.7296639,0.000239,2]
[327307831,1715977867160,-3014.62912246,0.000239,2]
[327307832,1715977867302,-414.88045074,0.000239,2]
[327307833,1715977867330,-132.2200907,0.000239,2]
[327307834,1715977867340,-650.6899093,0.000239,2]
[327307835,1715977867351,-502.77442162,0.000239,2]
[327307836,1715977867457,-441.92227681,0.00012327,2]
[327307837,1715977867470,-376.29664655,0.00012327,2]
[327307838,1715977868223,809.42150006,8.219e-05,2]
[327307841,1715978230284,357.08,8.219e-05,2]
[327307846,1715978449011,158.33,7.142e-05,2]
[327307847,1715978549503,200.0,8.327e-05,2]
[327307848,1715978586337,543.32,8.323e-05,2]
[327307849,1715978614114,322.86,8.34e-05,2]
[327307850,1715978705980,339.22,8.219e-05,2]
[327307851,1715978713639,286.24,8.281e-05,2]
[327307909,1715979031337,-656.27275998,8.512e-05,2]
[327307911,1715979031347,-321.50775091,8.512e-05,2]
[327307912,1715979031356,-99.02978918,8.512e-05,2]
[327307913,1715979031370,-169.18307454,8.512e-05,2]
[327307914,1715979031380,-155.0,8.512e-05,2]
[327307915,1715979031389,-155.0,8.513e-05,2]
[327307916,1715979031399,-155.0,8.513e-05,2]
[327307917,1715979031408,-2367.99404171,8.513e-05,2]
[327307918,1715979031420,-1908.24941541,8.513e-05,2]
[327307919,1715979031429,-155.0,8.514e-05,2]
[327307920,1715979031438,-2185.6405926,8.514e-05,2]
[327307921,1715979031447,-409.61241196,8.515e-05,2]
[327307922,1715979031456,-3283.77690883,8.515e-05,2]
[327307923,1715979031466,-266.24547519,8.515e-05,2]
[327307924,1715979031475,-1789.09722972,8.515e-05,2]
[327307925,1715979031484,-782.05554804,8.515e-05,2]
[327307926,1715979031493,-360.9493394,8.516e-05,2]
[327307927,1715979031503,-1063.64659674,8.516e-05,2]
[327307928,1715979031514,-155.0,8.517e-05,2]
[327307929,1715979031524,-155.0,8.517e-05,2]
[327307930,1715979031535,-344.33524362,8.518e-05,2]
[327307931,1715979031544,-623.34540305,8.518e-05,2]
[327307932,1715979031555,-155.0,8.522e-05,2]
[327307933,1715979031567,-20556.6,8.524e-05,2]
[327307934,1715979031580,-150.0,8.529e-05,2]
[327307935,1715979031590,-535.02614423,8.533e-05,2]
[327307936,1715979031602,-150.0,8.548e-05,2]
[327307937,1715979031613,-798.73,8.584e-05,2]
[327307938,1715979031623,-200.0,8.585e-05,2]
[327307939,1715979031632,-2008.51,8.6e-05,2]
[327307940,1715979031642,-250.0,8.624e-05,2]
[327307941,1715979031653,-535.59,8.646e-05,2]
[327307942,1715979031664,-204.80318837,8.663e-05,2]
[327307943,1715979031673,-1000.0,8.664e-05,2]
[327307944,1715979031683,-535.59,8.67e-05,2]
[327307946,1715979031692,-535.59,8.694e-05,2]
[327307948,1715979031701,-535.59,8.718e-05,2]
[327307950,1715979031710,-535.59,8.741e-05,2]
[327307952,1715979031719,-535.59,8.765e-05,2]
[327307954,1715979031728,-535.59,8.789e-05,2]
[327307956,1715979031738,-535.59,8.812e-05,2]
[327307958,1715979031747,-535.59,8.836e-05,2]
[327307960,1715979031756,-175.31,8.858e-05,2]
[327307962,1715979031766,-535.59,8.86e-05,2]
[327307964,1715979031775,-535.59,8.884e-05,2]
[327307965,1715979031786,-535.59,8.907e-05,2]
[327307966,1715979031795,-535.59,8.931e-05,2]
[327307967,1715979031804,-253.95,8.948e-05,2]
[327307968,1715979031814,-535.59,8.955e-05,2]
[327307969,1715979031823,-535.59,8.979e-05,2]
[327307970,1715979031832,-535.59,9.002e-05,2]
[327307971,1715979031841,-234.1769208,9.022e-05,2]
[327307972,1715979031850,-535.59,9.026e-05,2]
[327307973,1715979031859,-535.59,9.05e-05,2]
[327307974,1715979031870,-1272.29092299,9.063e-05,2]
[327307975,1715979031879,-535.59,9.073e-05,2]
[327307976,1715979031888,-535.59,9.097e-05,2]
[327307977,1715979031898,-2221.6315313,9.116e-05,2]
[327307978,1715979031908,-1000.0,9.126e-05,2]
[327307980,1715979031917,-7514.47016042,9.133e-05,2]
[327307982,1715979031926,-543.32,9.363e-05,2]
[327307984,1715979031936,-210.0,9.382e-05,2]
[327307986,1715979031946,-499.99,9.67e-05,2]
[327307988,1715979031955,-7859.15,9.67e-05,2]
[327307990,1715979031964,-318.6,9.67e-05,2]
[327307992,1715979031973,-935.92,9.67e-05,2]
[327307994,1715979031983,-9999.99,9.67e-05,2]
[327307995,1715979031992,-9853.7319,9.897e-05,2]
[327307996,1715979032002,-1412.27528136,9.968e-05,2]
[327307997,1715979032011,-3841.17087883,0.0001,2]
[327307998,1715979032020,-8507.67580891,0.0001,7]
[327307999,1715979032030,-789.3712268,0.0001,2]
[327308000,1715979032040,-712.69569483,0.0001,2]
[327308001,1715979032050,-324.77118581,0.0001,2]
[327308002,1715979032060,-253.95,0.00010066,2]
[327308003,1715979032070,-1000.0,0.00010267,2]
[327308004,1715979032080,-339.22,0.00010386,2]
[327308005,1715979032090,-543.32,0.00010403,2]
[327308006,1715979032099,-396.44641002,0.00010459,2]
[327308007,1715979032109,-155.1772459,0.00010494,2]
[327308008,1715979032119,-166.81757453,0.00010494,2]
[327308009,1715979032129,-199.62095941,0.00010494,2]
[327308010,1715979032139,-422.45066744,0.00010494,2]
[327308011,1715979032149,-617.91342405,0.00010494,2]
[327308012,1715979032159,-155.0,0.00010495,2]
[327308013,1715979032169,-162.70674486,0.00010495,2]
[327308014,1715979032179,-155.78373103,0.00010495,2]
[327308015,1715979032189,-155.41833568,0.00010495,2]
[327308016,1715979032200,-406.05433481,0.00010495,2]
[327308017,1715979032210,-236.8114536,0.00010495,2]
[327308018,1715979032220,-305.87599182,0.00010495,2]
[327308019,1715979032230,-574.34871661,0.00010495,2]
[327308020,1715979032240,-200.21998404,0.00010495,2]
[327308021,1715979032249,-311.1631246,0.00010495,2]
[327308022,1715979032261,-305.72421467,0.00010495,2]
[327308023,1715979032270,-155.0,0.00010495,2]
[327308024,1715979032279,-208.17791052,0.00010495,2]
[327308025,1715979032290,-202.23422368,0.00010495,2]
[327308026,1715979032299,-320.0247412,0.00010495,2]
[327308027,1715979032309,-157.60689553,0.00010495,2]
[327308028,1715979032318,-206.88313584,0.00010495,2]
[327308029,1715979032328,-567.22644914,0.00010496,7]
[327308030,1715979032337,-162.04998488,0.00010496,2]
[327308031,1715979032347,-181.47937489,0.00010496,2]
[327308032,1715979032356,-307.49626836,0.00010496,2]
[327308033,1715979032366,-171.67930506,0.00010496,2]
[327308034,1715979032375,-155.0,0.00010496,2]
[327308035,1715979032385,-155.31745909,0.00010496,2]
[327308036,1715979032394,-198.39670616,0.00010496,2]
[327308037,1715979032403,-427.2731236,0.00010496,2]
[327308038,1715979032414,-155.0,0.00010496,2]
[327308039,1715979032423,-356.13965081,0.00010496,2]
[327308040,1715979032433,-162.01108245,0.00010496,2]
[327308041,1715979032442,-172.75773501,0.00010496,2]
[327308042,1715979032451,-848.00767163,0.00010496,2]
[327308043,1715979032461,-201.14870715,0.00010496,2]
[327308044,1715979032470,-165.39781373,0.00010496,2]
[327308045,1715979032479,-204.31657364,0.00010496,2]
[327308046,1715979032489,-200.34341848,0.00010496,2]
[327308047,1715979032498,-201.60766958,0.00010496,2]
[327308048,1715979032513,-309.22950962,0.00010496,2]
[327308049,1715979032523,-190.93123037,0.00010496,2]
[327308050,1715979032533,-155.96026536,0.00010496,2]
[327308051,1715979032542,-201.64761651,0.00010496,2]
[327308052,1715979032551,-165.20489312,0.00010496,2]
[327308053,1715979032561,-314.81387529,0.00010496,2]
[327308054,1715979032570,-223.69513029,0.00010496,2]
[327308055,1715979032581,-191.07717456,0.00010496,2]
[327308056,1715979032591,-3089.166756,0.00010497,2]
[327308057,1715979032602,-155.09581377,0.00010498,2]
[327308058,1715979032612,-782.13638794,0.00010498,2]
[327308059,1715979032622,-782.26025222,0.00010498,2]
[327308060,1715979032631,-213.58249005,0.00010498,2]
[327308061,1715979032641,-5555.9306126,0.00010498,2]
[327308062,1715979032651,-1212.0770862,0.00010498,2]
[327308063,1715979032661,-156.15446369,0.00010498,2]
[327308064,1715979032671,-156.08637497,0.00010498,2]
[327308065,1715979032680,-643.1326905,0.00010499,2]
[327308066,1715979032690,-1034.64124282,0.00010499,3]
[327308067,1715979032700,-3481.24225811,0.00010499,2]
[327308068,1715979032710,-28789.57988817,0.000105,2]
[327308069,1715979032724,-23482.48197186,0.000105,2]
[327308070,1715979032740,-6187.40831029,0.000105,2]
[327308071,1715979032752,-14498.57282643,0.000105,2]